fUST/lending_fUST_20250821
["ID","MTS","AMOUNT","RATE_DAILY","PERIOD"]
[380400473,1755732644469,-583.06220157,0.00024899,2]
[380400474,1755732644484,-583.06220157,0.00024899,2]
[380400475,1755732644494,-583.06220157,0.00024899,2]
[380400476,1755732644503,-583.06220157,0.00024899,2]
[380400477,1755732644514,-583.06220157,0.00024899,2]
[380400478,1755732644524,-99.89736355,0.00027316,7]
[380400479,1755732644535,-151.0,0.00027316,7]
[380400480,1755732644545,-151.0,0.00027316,7]
[380400481,1755732644557,-151.0,0.00027316,7]
[380400482,1755732644567,-151.0,0.00027316,7]
[380400483,1755732644577,-151.0,0.00027316,7]
[380400484,1755732644587,-151.0,0.00027316,7]
[380400485,1755732644596,-151.0,0.00027316,7]
[380400486,1755732644606,-240.981856,0.00027316,7]
[380400487,1755732644616,-151.0,0.00027316,7]
[380400488,1755732644625,-151.0,0.00027316,7]
[380400489,1755732644635,-151.0,0.00027316,7]
[380400490,1755732644644,-151.0,0.00027316,7]
[380400491,1755732644653,-198.96128,0.00027316,7]
[380400492,1755732644663,-151.0,0.00027316,7]
[380400493,1755732644672,-448.232544,0.00027316,7]
[380400494,1755732644682,-448.232544,0.00027316,7]
[380400495,1755732644691,-448.232544,0.00027316,7]
[380400496,1755732644701,-448.232544,0.00027316,7]
[380400497,1755732644711,-448.232544,0.00027316,7]
[380400499,1755732644719,-448.232544,0.00027316,7]
[380400501,1755732644729,-448.232544,0.00027316,7]
[380400503,1755732644738,-448.232544,0.00027316,7]
[380400505,1755732644748,-151.0,0.00027316,7]
[380400507,1755732644757,-448.232544,0.00027316,7]
[380400509,1755732644767,-448.232544,0.00027316,7]
[380400511,1755732644776,-448.232544,0.00027316,7]
[380400512,1755732644785,-448.232544,0.00027316,7]
[380400513,1755732644794,-448.232544,0.00027316,7]
[380400515,1755732644803,-448.232544,0.00027316,7]
[380400517,1755732644816,-448.232544,0.00027316,7]
[380400518,1755732644825,-448.232548,0.00027316,7]
[380400519,1755732644835,-227.413214,0.00027316,7]
[380400520,1755732644844,-151.388328,0.00027316,7]
[380400521,1755732644853,-151.0,0.00027316,7]
[380400522,1755732644863,-151.0,0.00027316,7]
[380400523,1755732644873,-151.0,0.00027316,7]
[380400524,1755732644883,-151.0,0.00027316,7]
[380400525,1755732644892,-151.0,0.00027316,7]
[380400526,1755732644901,-151.0,0.00027316,7]
[380400527,1755732644910,-151.0,0.00027316,7]
[380400528,1755732644920,-151.0,0.00027316,7]
[380400529,1755732644930,-151.0,0.00027316,7]
[380400530,1755732644942,-151.0,0.00027316,7]
[380400531,1755732644952,-151.0,0.00027316,7]
[380400532,1755732644962,-201.550544,0.00027316,7]
[380400533,1755732644971,-151.0,0.00027316,7]
[380400534,1755732644980,-151.0,0.00027316,7]
[380400535,1755732644989,-151.0,0.00027316,7]
[380400536,1755732644999,-151.0,0.00027316,7]
[380400537,1755732645011,-151.0,0.00027316,7]
[380400538,1755732645020,-151.0,0.00027316,7]
[380400539,1755732645030,-151.0,0.00027316,7]
[380400540,1755732645039,-151.0,0.00027316,7]
[380400541,1755732645048,-151.0,0.00027316,7]
[380400542,1755732645057,-206376.58730268,0.00027316,20]
[380400543,1755732645070,-578.19761518,0.00027316,20]
[380400544,1755732645082,-2293.9,0.00027316,20]
[380400545,1755732645093,-79531.84278769,0.00027316,20]
[380400550,1755732646502,-64.22602061,0.00027316,2]
[380400555,1755732688895,171.168732,0.00027397,120]
[380400556,1755733153459,1114.5,0.000273,120]
[380400557,1755733179081,159.438898,0.00013699,2]
[380400558,1755733344460,5000.0,0.00019178,2]
[380400559,1755733363901,171.2,0.00027397,120]
[380400560,1755733553176,-825.31682217,0.000199,2]
[380400561,1755733553196,-1213.0,0.0002,2]
[380400562,1755733553216,-177.20047176,0.00020835,2]
[380400563,1755733612100,-249.87407794,0.00020835,2]
[380400564,1755733638336,171.168732,0.00027397,120]
[380400565,1755733750117,-785.21076158,0.000199,2]
[380400566,1755733750149,-12.59549988,0.000199,2]
[380400567,1755733750170,-592.05003649,0.00020835,2]
[380400568,1755733750192,-797.80626135,0.00020835,2]
[380400569,1755733750213,-797.80626135,0.00021771,2]
[380400570,1755733750310,-739.74194093,0.00022,2]
[380400571,1755733756085,-222.64062095,0.00022,2]
[380400608,1755733832528,-417.88717517,0.000199,2]
[380400611,1755733832540,-300.13846019,0.000199,2]
[380400613,1755733832549,-718.02563521,0.00020835,2]
[380400615,1755733832558,-341.71462895,0.00021771,2]
[380400617,1755733832569,-376.31100626,0.00021771,2]
[380400619,1755733832579,-37.61743812,0.00022,2]
[380400621,1755733832588,-88.18438045,0.00022741,2]
[380400633,1755733832669,-577.81561955,0.00022741,2]
[380400636,1755733832697,-1097.196196,0.00022791,2]
[380400639,1755733832707,-977.0,0.00022809,2]
[380400643,1755733832716,-300.0,0.00022809,2]
[380400645,1755733832726,-300.0,0.00022809,2]
[380400647,1755733832735,-300.0,0.00022809,2]
[380400649,1755733832745,-300.0,0.00022809,2]
[380400651,1755733832754,-1200.0,0.00022809,2]
[380400653,1755733832763,-583.61056563,0.0002281,2]
[380400655,1755733832772,-5000.0,0.00022811,2]
[380400658,1755733832781,-159.438898,0.00023182,2]
[380400660,1755733832790,-1133.35809083,0.000245,2]
[380400662,1755733832799,-888.2570247,0.000245,2]
[380400664,1755733832809,-536.19875584,0.000245,2]
[380400666,1755733832819,-503.91,0.0002459,3]
[380400668,1755733832828,-251.96,0.0002459,3]
[380400670,1755733832838,-755.88,0.0002459,3]
[380400672,1755733832850,-500.0,0.00024599,2]
[380400674,1755733832860,-500.0,0.00024599,2]
[380400677,1755733832869,-500.0,0.00024599,2]
[380400678,1755733832880,-500.0,0.00024599,2]
[380400679,1755733832889,-500.0,0.00024599,2]
[380400680,1755733832898,-500.0,0.00024599,2]
[380400681,1755733832908,-297.95419931,0.00024599,2]
[380400682,1755733832918,-500.0,0.00024599,2]
[380400683,1755733832930,-242.26515483,0.00024599,2]
[380400684,1755733832940,-651.8,0.00024599,2]
[380400686,1755733832950,-35799.00338544,0.000246,2]
[380400688,1755733832962,-1032.61708873,0.000246,2]
[380400690,1755733832973,-200000.0,0.000246,2]
[380400858,1755733840765,-241.09,0.0002459,10]
[380400859,1755733840775,-2275.31,0.000246,2]
[380400869,1755733840864,-87.02092596,0.000246,2]
[380400871,1755733840875,-259.63000002,0.000246,2]
[380400938,1755733843462,-500.38856175,0.000246,2]
[380400939,1755733843581,-624.64,0.00024599,2]
[380400940,1755733843591,-130046.0300381,0.000246,2]
[380400942,1755733843600,-5777.54,0.000246,7]
[380400943,1755733843610,-2481.05,0.000246,7]
[380400944,1755733843619,-468.98,0.000246,7]
[380400945,1755733843628,-160.0,0.00024694,2]
[380400946,1755733843637,-375.94359665,0.00024695,2]
[380400947,1755733843647,-216.9170744,0.00024695,2]
[380400948,1755733843656,-844.05985274,0.00024695,2]
[380400949,1755733843665,-420.0,0.00024765,2]
[380400950,1755733843674,-300.0,0.00024765,2]
[380400951,1755733843683,-87822.55826296,0.00024777,2]
[380400952,1755733843694,-103689.20159725,0.00024777,2]
[380400953,1755733843706,-434.1,0.00024777,2]
[380400982,1755733846592,-199.0,0.0002449,10]
[380400984,1755733846601,-215.82729805,0.00024695,2]
[380400986,1755733846611,-37703.68975932,0.00024777,2]
[380401001,1755733846744,-935.5364121,0.00024777,2]
[380401003,1755733846756,-19991.58950788,0.00024777,2]
[380401020,1755734260829,2000.0,0.00027397,120]
[380401021,1755734323452,167.590546,0.00013699,2]
[380401022,1755734625513,171.168732,0.00027397,120]
[380401023,1755734741096,-443.86803204,0.000199,2]
[380401024,1755734819100,-284.1229739,0.000199,2]
[380401025,1755734950088,-156.8,0.00020828,2]
[380401026,1755734963228,-702.62817038,0.000199,2]
[380401027,1755734963249,-3.2,0.00020828,2]
[380401028,1755734963273,-79.3825912,0.00020835,2]
[380401038,1755735032867,-453.68345598,0.00020586,4]
[380401039,1755735032884,-604.91127464,0.00020792,6]
[380401040,1755735032897,-623.24557911,0.00020835,2]
[380401041,1755735032907,-604.91127464,0.00020997,6]
[380401042,1755735032917,-160.98243831,0.00021203,6]
[380401043,1755735032926,-702.62817031,0.00021771,2]
[380401044,1755735032936,-702.62817031,0.00022706,2]
[380401045,1755735032945,-193.21,0.000236,30]
[380401046,1755735032954,-167.590546,0.00023973,2]
[380401047,1755735032963,-411.1921187,0.00024397,2]
[380401048,1755735032974,-788.8078813,0.00024397,2]
[380401049,1755735032983,-300.0,0.00024397,2]
[380401050,1755735032993,-300.0,0.00024397,2]
[380401051,1755735033003,-300.0,0.00024397,2]
[380401052,1755735033012,-300.0,0.00024397,2]
[380401053,1755735033021,-300.0,0.00024397,2]
[380401054,1755735033031,-1200.0,0.00024397,2]
[380401055,1755735033040,-5023.19792173,0.00024398,2]
[380401070,1755735038850,-10479.73392153,0.00024398,2]
[380401071,1755735038861,-2789.15161342,0.000244,2]
[380401072,1755735038871,-500.0,0.00024473,2]
[380401073,1755735038880,-500.0,0.00024473,2]
[380401074,1755735038889,-500.0,0.00024473,2]
[380401075,1755735038901,-500.0,0.00024473,2]
[380401076,1755735038910,-500.0,0.00024473,2]
[380401077,1755735038920,-468.73082083,0.00024473,2]
[380401078,1755735038929,-501.07757065,0.00024473,2]
[380401079,1755735038939,-585.25058045,0.00024473,2]
[380401080,1755735038948,-897.09,0.0002449,3]
[380401081,1755735038957,-448.54,0.0002449,3]
[380401082,1755735038966,-224.27,0.0002449,3]
[380401083,1755735038975,-672.85,0.0002449,3]
[380401084,1755735038984,-200.91,0.0002449,10]
[380401085,1755735038993,-844.05985274,0.00024497,2]
[380401086,1755735039002,-160.0,0.00024498,2]
[380401087,1755735039011,-375.94359665,0.00024498,2]
[380401088,1755735039020,-216.9170744,0.00024498,2]
[380401089,1755735039029,-215.82729805,0.00024498,2]
[380401090,1755735039039,-500.0,0.00024499,2]
[380401091,1755735039048,-500.0,0.00024499,2]
[380401092,1755735039059,-539.21097716,0.00024499,2]
[380401093,1755735039068,-203.42917138,0.00024499,2]
[380401094,1755735039077,-181.95861068,0.00024499,2]
[380401095,1755735039087,-500.0,0.00024499,2]
[380401096,1755735039096,-495.46168567,0.00024499,2]
[380401097,1755735039107,-313.33616289,0.00024499,2]
[380401098,1755735039116,-500.0,0.00024499,2]
[380401099,1755735039126,-171.84259865,0.00024499,2]
[380401100,1755735039136,-500.0,0.00024499,2]
[380401101,1755735039146,-500.0,0.00024499,2]
[380401102,1755735039156,-500.0,0.00024499,2]
[380401103,1755735039165,-500.0,0.00024499,2]
[380401104,1755735039175,-500.0,0.00024499,2]
[380401105,1755735039184,-500.0,0.00024499,2]
[380401106,1755735039193,-500.0,0.00024499,2]
[380401107,1755735039202,-503.16883757,0.00024499,2]
[380401108,1755735039211,-500.0,0.00024499,2]
[380401109,1755735039223,-270.18419753,0.00024499,2]
[380401110,1755735039233,-500.0,0.00024499,2]
[380401111,1755735039242,-169.08658882,0.00024499,2]
[380401112,1755735039330,-500.0,0.00024499,2]
[380401113,1755735039340,-500.0,0.00024499,2]
[380401114,1755735039349,-500.0,0.00024499,2]
[380401115,1755735039359,-500.0,0.00024499,2]
[380401116,1755735039369,-171.21056648,0.00024499,2]
[380401117,1755735039377,-500.0,0.00024499,2]
[380401118,1755735039387,-181.76922523,0.00024499,2]
[380401119,1755735039396,-326.92352339,0.00024499,2]
[380401120,1755735039405,-409.01586496,0.00024499,2]
[380401121,1755735039414,-500.0,0.00024499,2]
[380401122,1755735039423,-500.0,0.00024499,2]
[380401123,1755735039433,-500.0,0.00024499,2]
[380401124,1755735039443,-500.0,0.00024499,2]
[380401125,1755735039452,-500.0,0.00024499,2]
[380401126,1755735039462,-500.0,0.00024499,2]
[380401127,1755735039471,-500.0,0.00024499,2]
[380401128,1755735039481,-500.0,0.00024499,2]
[380401129,1755735039490,-500.0,0.00024499,2]
[380401130,1755735039502,-500.0,0.00024499,2]
[380401131,1755735039512,-500.0,0.00024499,2]
[380401132,1755735039521,-500.0,0.00024499,2]
[380401133,1755735039531,-500.0,0.00024499,2]
[380401134,1755735039540,-500.0,0.00024499,2]
[380401135,1755735039550,-500.0,0.00024499,2]
[380401136,1755735039559,-500.0,0.00024499,2]
[380401137,1755735039569,-500.0,0.00024499,2]
[380401138,1755735039578,-500.0,0.00024499,2]
[380401139,1755735039587,-500.0,0.00024499,2]
[380401140,1755735039596,-500.0,0.00024499,2]
[380401141,1755735039605,-636.74,0.00024499,2]
[380401142,1755735039614,-370000.0,0.000245,2]
[380401143,1755735039623,-610.22,0.000245,7]
[380401144,1755735039633,-3291.8,0.000245,7]
[380401145,1755735039642,-155.18,0.0002458,7]
[380401146,1755735039651,-593.64,0.00024586,2]
[380401147,1755735039661,-151.83,0.00024599,2]
[380401148,1755735039670,-3000.0,0.000246,2]
[380401149,1755735039679,-3000.0,0.0002461,2]
[380401150,1755735039688,-3000.0,0.0002462,2]
[380401151,1755735039697,-3990.657896,0.0002463,2]
[380401152,1755735039706,-151.0,0.000247,9]
[380401153,1755735039716,-151.0,0.000247,7]
[380401154,1755735039725,-17363.19839312,0.000247,3]
[380401155,1755735039734,-500.0,0.00024773,2]
[380401156,1755735039744,-979981.81497939,0.00024777,2]
[380401157,1755735039753,-151.0,0.000248,9]
[380401158,1755735039762,-151.0,0.000248,7]
[380401159,1755735039772,-27942.7679258,0.000248,2]
[380401160,1755735039781,-151.0,0.000248,7]
[380401161,1755735039790,-250.0,0.00024817,2]
[380401162,1755735039799,-578.20443966,0.00024873,2]
[380401163,1755735039808,-500.0,0.00024873,2]
[380401164,1755735039817,-268.25135886,0.00024873,2]
[380401165,1755735039826,-500.0,0.00024873,2]
[380401166,1755735039835,-500.0,0.00024873,2]
[380401167,1755735039845,-500.0,0.00024873,2]
[380401168,1755735039854,-500.0,0.00024873,2]
[380401169,1755735039864,-500.0,0.00024873,2]
[380401170,1755735039874,-500.0,0.00024873,2]
[380401171,1755735039884,-500.59189067,0.00024873,2]
[380401172,1755735039893,-500.0,0.00024873,2]
[380401173,1755735039902,-500.0,0.00024873,2]
[380401174,1755735039912,-500.81515857,0.00024873,2]
[380401175,1755735039922,-500.0,0.00024873,2]
[380401176,1755735039932,-500.0,0.00024873,2]
[380401177,1755735039941,-3492.84599073,0.00024889,2]
[380401178,1755735039951,-768.32336688,0.00024899,2]
[380401179,1755735039960,-500.0,0.00024899,2]
[380401180,1755735039971,-500.0,0.00024899,2]
[380401181,1755735039980,-768.32336688,0.00024899,2]
[380401182,1755735039990,-768.32336688,0.00024899,2]
[380401183,1755735039999,-768.32336688,0.00024899,2]
[380401184,1755735040009,-443.07630499,0.00024899,2]
[380401185,1755735040018,-768.32336688,0.00024899,2]
[380401186,1755735040028,-768.32336688,0.00024899,2]
[380401187,1755735040038,-768.32336688,0.00024899,2]
[380401188,1755735040048,-768.32336688,0.00024899,2]
[380401189,1755735040057,-768.32336688,0.00024899,2]
[380401190,1755735040068,-768.32336688,0.00024899,2]
[380401191,1755735040079,-768.32336688,0.00024899,2]
[380401192,1755735040089,-1098.55445496,0.00024899,2]
[380401193,1755735040099,-1098.55445496,0.00024899,2]
[380401194,1755735040110,-1098.55445496,0.00024899,2]
[380401195,1755735040120,-1098.55445496,0.00024899,2]
[380401196,1755735040130,-1098.55445496,0.00024899,2]
[380401197,1755735040139,-1098.55445496,0.00024899,2]
[380401198,1755735040148,-1098.55445496,0.00024899,2]
[380401199,1755735040158,-1098.55445496,0.00024899,2]
[380401200,1755735040168,-1132.12139665,0.00024899,2]
[380401201,1755735040177,-1132.12139665,0.00024899,2]
[380401202,1755735040186,-1132.12139665,0.00024899,2]
[380401203,1755735040196,-1132.12139665,0.00024899,2]
[380401204,1755735040206,-1132.12139665,0.00024899,2]
[380401205,1755735040217,-1209.63458065,0.000249,2]
[380401206,1755735040228,-5058.87,0.000249,7]
[380401207,1755735040237,-151.0,0.000249,8]
[380401208,1755735040246,-748375.546402,0.000249,2]
[380401209,1755735040255,-151.0,0.000249,8]
[380401210,1755735040265,-172.57443399,0.00024921,2]
[380401211,1755735040274,-330.85952061,0.00025041,2]
[380401212,1755735040283,-500.0,0.00025047,2]
[380401213,1755735040294,-5492.29492984,0.00025107,7]
[380401214,1755735040303,-216.9170744,0.00025107,7]
[380401215,1755735040312,-844.05985274,0.00025107,7]
[380401216,1755735040321,-281.0,0.00025246,2]
[380401217,1755735040330,-624.8241583,0.00025297,2]
[380401218,1755735040340,-500.0,0.00025321,2]
[380401219,1755735040350,-593.64,0.00025408,3]
[380401220,1755735040363,-282.0,0.00025415,2]
[380401222,1755735040373,-749.12013894,0.00025421,2]
[380401223,1755735040448,-392.92873309,0.00025421,2]
[380401224,1755735040458,-503.66116912,0.00025421,2]
[380401225,1755735040468,-501.34172822,0.00025421,2]
[380401226,1755735040478,-500.0,0.00025421,2]
[380401227,1755735040487,-500.0,0.00025421,2]
[380401228,1755735040496,-893.13424247,0.00025421,2]
[380401229,1755735040506,-1000.0,0.00025421,2]
[380401231,1755735040515,-702.62817031,0.00025513,3]
[380401233,1755735040525,-160.0,0.00025575,2]
[380401235,1755735040534,-500.0,0.00025595,2]
[380401237,1755735040544,-203.0,0.00025607,7]
[380401238,1755735040553,-281.0,0.00025661,7]
[380401239,1755735040563,-204.0,0.00025671,7]
[380401240,1755735040572,-1000.69307547,0.00025691,2]
[380401241,1755735040582,-3291.8,0.000257,7]
[380401242,1755735040591,-3492.84599073,0.00025795,2]
[380401243,1755735040600,-610.22,0.000258,7]
[380401244,1755735040610,-302.0,0.00025806,2]
[380401245,1755735040620,-300.0,0.00025806,2]
[380401246,1755735040629,-151.0,0.00025806,2]
[380401247,1755735040639,-300.0,0.00025806,2]
[380401248,1755735040649,-151.0,0.00025806,2]
[380401249,1755735040659,-300.0,0.00025806,2]
[380401250,1755735040669,-151.0,0.00025806,2]
[380401251,1755735040679,-151.0,0.00025806,2]
[380401252,1755735040688,-500.0,0.00025806,2]
[380401253,1755735040697,-300.0,0.00025806,2]
[380401254,1755735040707,-151.0,0.00025806,2]
[380401255,1755735040716,-151.0,0.00025806,2]
[380401256,1755735040725,-500.0,0.00025806,2]
[380401257,1755735040734,-300.0,0.00025806,2]
[380401258,1755735040744,-151.0,0.00025806,2]
[380401259,1755735040753,-151.0,0.00025806,2]
[380401260,1755735040763,-151.0,0.00025806,2]
[380401261,1755735040772,-500.0,0.00025806,2]
[380401262,1755735040781,-300.0,0.00025806,2]
[380401263,1755735040791,-151.0,0.00025806,2]
[380401264,1755735040800,-151.0,0.00025806,2]
[380401265,1755735040810,-151.0,0.00025806,2]
[380401266,1755735040819,-174.54633008,0.00025806,2]
[380401267,1755735040828,-151.0,0.00025806,2]
[380401268,1755735040837,-151.0,0.00025806,2]
[380401269,1755735040846,-151.0,0.00025806,2]
[380401270,1755735040855,-151.0,0.00025806,2]
[380401271,1755735040864,-151.0,0.00025806,2]
[380401272,1755735040873,-290.92949727,0.00025806,2]
[380401273,1755735040883,-151.0,0.00025806,2]
[380401274,1755735040892,-2183.31810187,0.00025806,2]
[380401275,1755735040901,-151.0,0.00025806,2]
[380401277,1755735040911,-151.0,0.00025806,2]
[380401279,1755735040920,-19187.29552238,0.00025806,2]
[380401280,1755735040935,-151.0,0.00025806,2]
[380401281,1755735040953,-151.0,0.00025806,2]
[380401282,1755735040970,-151.0,0.00025806,2]
[380401283,1755735040988,-151.0,0.00025806,2]
[380401284,1755735041008,-151.0,0.00025806,2]
[380401285,1755735041025,-151.0,0.00025806,2]
[380401286,1755735041043,-151.0,0.00025806,2]
[380401287,1755735041060,-151.0,0.00025806,2]
[380401288,1755735041076,-151.0,0.00025806,2]
[380401289,1755735041099,-151.0,0.00025806,2]
[380401290,1755735041124,-151.0,0.00025806,2]
[380401291,1755735041141,-151.0,0.00025806,2]
[380401292,1755735041155,-151.0,0.00025806,2]
[380401293,1755735041176,-151.0,0.00025806,2]
[380401294,1755735041191,-2789.15161342,0.00025821,2]
[380401295,1755735041207,-1794.18,0.0002586,3]
[380401296,1755735041227,-897.08,0.0002586,3]
[380401297,1755735041243,-448.54,0.0002586,3]
[380401298,1755735041259,-500.0,0.00025869,2]
[380401299,1755735041276,-500.0,0.00025873,2]
[380401300,1755735041293,-500.0,0.00025873,2]
[380401301,1755735041310,-500.0,0.00025873,2]
[380401302,1755735041325,-500.0,0.0002591,2]
[380401303,1755735041341,-228.80361854,0.00025943,2]
[380401304,1755735041358,-1000.0,0.00025948,5]
[380401305,1755735041374,-161.8488154,0.00026,30]
[380401306,1755735041390,-1000.02,0.00026,30]
[380401307,1755735041405,-773.5596454,0.00026048,2]
[380401308,1755735041421,-5058.87,0.000261,7]
[380401309,1755735041440,-260.0,0.00026123,2]
[380401310,1755735041455,-500.0,0.00026143,2]
[380401311,1755735041471,-2271.0,0.00026184,2]
[380401312,1755735041486,-593.64,0.0002623,4]
[380401313,1755735041507,-161.8488154,0.00026356,30]
[380401314,1755735041532,-3492.84599073,0.00026411,2]
[380401315,1755735041558,-500.0,0.00026417,2]
[380401316,1755735041574,-1000.0,0.00026421,2]
[380401317,1755735041589,-1000.0,0.00026421,2]
[380401318,1755735041604,-346.94503,0.00026421,2]
[380401319,1755735041633,-159.73,0.00026421,2]
[380401320,1755735041647,-249.1,0.00026421,2]
[380401321,1755735041662,-973.0,0.00026421,2]
[380401322,1755735041675,-637.0,0.00026421,2]
[380401323,1755735041693,-2154.0,0.00026421,2]
[380401324,1755735041708,-420.0,0.00026446,2]
[380401325,1755735041723,-817.0,0.00026447,2]
[380401326,1755735041737,-702.62817031,0.00026448,5]
[380401327,1755735041753,-1000.0,0.00026458,2]
[380401328,1755735041767,-388.6490375,0.00026493,2]
[380401329,1755735041782,-589.395901,0.00026493,2]
[380401330,1755735041797,-1086.36239191,0.00026496,2]
[380401331,1755735041909,-203.0,0.00026669,2]
[380401332,1755735041919,-360.0,0.00026671,2]
[380401333,1755735041929,-161.8488154,0.00026685,30]
[380401334,1755735041940,-500.0,0.00026691,2]
[380401335,1755735041958,-636.74,0.00026691,4]
[380401336,1755735041988,-203.0,0.00026785,2]
[380401337,1755735042000,-700.0,0.00026817,2]
[380401338,1755735042009,-600.0,0.00026899,2]
[380401339,1755735042019,-700.0,0.00026917,2]
[380401340,1755735042028,-1500.0,0.00026968,2]
[380401341,1755735042038,-1500.0,0.00026968,2]
[380401342,1755735042047,-500.0,0.00026976,2]
[380401343,1755735042056,-610.22,0.00027,7]
[380401344,1755735042066,-3291.8,0.00027,7]
[380401345,1755735042075,-528.77847288,0.00027,3]
[380401346,1755735042084,-528.77847288,0.00027,3]
[380401347,1755735042094,-417.15472785,0.00027,3]
[380401348,1755735042103,-417.15472785,0.00027,3]
[380401349,1755735042112,-600.0,0.00027005,2]
[380401350,1755735042123,-500.0,0.00027005,2]
[380401351,1755735042132,-293.9452039,0.00027007,2]
[380401352,1755735042142,-153.0,0.00027007,2]
[380401353,1755735042151,-500.0,0.00027013,2]
[380401354,1755735042161,-593.64,0.00027052,5]
[380401355,1755735042170,-600.0,0.00027077,2]
[380401356,1755735042179,-2200.0,0.00027082,2]
[380401357,1755735042188,-500.0,0.00027102,2]
[380401358,1755735042198,-600.0,0.00027102,2]
[380401359,1755735042207,-199.0,0.00027116,30]
[380401360,1755735042218,-700.0,0.0002713,2]
[380401361,1755735042228,-500.0,0.00027146,2]
[380401362,1755735042237,-151.0,0.00027146,2]
[380401363,1755735042247,-151.0,0.00027146,2]
[380401364,1755735042256,-151.0,0.00027146,2]
[380401365,1755735042266,-151.0,0.00027146,2]
[380401366,1755735042275,-151.000001,0.00027146,2]
[380401367,1755735042285,-151.0,0.00027146,2]
[380401368,1755735042296,-265.04141882,0.00027146,2]
[380401369,1755735042306,-500.0,0.00027146,2]
[380401370,1755735042315,-175.32682312,0.00027146,2]
[380401371,1755735042324,-500.0,0.00027146,2]
[380401372,1755735042334,-151.0,0.00027146,2]
[380401373,1755735042343,-200.0,0.0002716,18]
[380401374,1755735042352,-500.0,0.0002716,2]
[380401375,1755735042364,-3492.84599073,0.00027165,2]
[380401376,1755735042373,-600.0,0.00027174,2]
[380401377,1755735042383,-151.0,0.00027175,2]
[380401378,1755735042392,-19897.22545671,0.00027175,2]
[380401379,1755735042402,-203.0,0.00027181,2]
[380401380,1755735042413,-2000.0,0.000272,2]
[380401381,1755735042423,-500.0,0.00027205,2]
[380401382,1755735042432,-203.0,0.00027213,2]
[380401383,1755735042441,-199.0,0.00027216,30]
[380401384,1755735042450,-180.72397984,0.00027219,2]
[380401385,1755735042460,-308.46200439,0.00027219,2]
[380401386,1755735042469,-1232.61416955,0.00027219,2]
[380401387,1755735042478,-460.0,0.00027219,2]
[380401388,1755735042488,-1000.0,0.00027241,2]
[380401389,1755735042497,-172.57443399,0.00027241,2]
[380401390,1755735042506,-1619.86937538,0.00027241,2]
[380401391,1755735042515,-2789.15161342,0.00027241,2]
[380401392,1755735042525,-600.0,0.00027248,2]
[380401393,1755735042534,-700.0,0.00027262,2]
[380401394,1755735042543,-150.0,0.000273,2]
[380401395,1755735042553,-5058.87,0.000273,7]
[380401396,1755735042563,-250.0,0.000273,10]
[380401397,1755735042572,-600.0,0.00027303,2]
[380401398,1755735042582,-500.0,0.00027314,2]
[380401399,1755735042593,-7095.71,0.0002732,60]
[380401400,1755735042602,-151.0,0.0002732,7]
[380401401,1755735042612,-151.0,0.0002732,7]
[380401402,1755735042623,-151.0,0.0002732,7]
[380401403,1755735042632,-151.0,0.0002732,7]
[380401404,1755735042641,-180.31,0.00027321,49]
[380401405,1755735042650,-189.27,0.00027321,49]
[380401406,1755735042660,-600.0,0.00027329,2]